Cogmind - Beta 9.1 @@@ ROGUE MODE // 2019.11.10 @ 22:34:39 // AFD2019/Pay2Buy Player: K.Ioz Result: Self-destructed Performance ------------- Evolutions (1) 500 Regions Visited (3) 600 Robots Destroyed (26) 130 Value Destroyed (596) 596 Prototype IDs (5) 100 Alien Tech Used (0) 0 Bonus (0) 0 TOTAL SCORE: 1926 Bonus ------- None Cogmind --------- Core Integrity 300/400 Matter 300/300 Energy 100/100 System Corruption 5% Temperature Cool (0) Location -9/Materials Parts ------- Power (1) Propulsion (3) Carbon-fiber Leg Utility (3) Weapon (2) Medium Laser Battle Rifle Inventory (10) Small Laser Rocket Launcher Mining Laser Great Maul Peak State ------------ Power Improved Ion Engine Propulsion Improved Aluminum Leg Improved Aluminum Leg Utility Medium Armor Plating Weapon Assault Rifle Improved Assault Rifle Inventory (Empty) [Rating: 12] Favorites ----------- Power Improved Ion Engine Engine Improved Ion Engine Propulsion Aluminum Leg Leg Aluminum Leg Utility Medium Armor Plating Protection Medium Armor Plating Weapon Improved Assault Rifle Energy Gun Medium Laser Ballistic Gun Improved Assault Rifle Special Weapon Mining Laser Impact Weapon Great Maul Build | -11 -10 -10 -9 ------- Run | Scr Mat Min Mat Slots Evolved 2 | . . . 2 Power . | . . . . Propulsion 1 | . . . 1 Utility 1 | . . . 1 Weapon . | . . . . Parts Attached 10 | . 8 . 2 Power . | . . . . Engine . | . . . . Core . | . . . . Reactor . | . . . . Propulsion 1 | . 1 . . Treads . | . . . . Leg 1 | . 1 . . Wheel . | . . . . Hover . | . . . . Flight . | . . . . Utility 2 | . 1 . 1 Device . | . . . . Storage . | . . . . Processor . | . . . . Hackware . | . . . . Protection 2 | . 1 . 1 Artifact . | . . . . Weapon 7 | . 6 . 1 Energy Gun 1 | . . . 1 Energy Cannon . | . . . . Ballistic Gun 4 | . 4 . . Ballistic Cannon . | . . . . Launcher . | . . . . Special Weapon 1 | . 1 . . Impact Weapon 1 | . 1 . . Slashing Weapon . | . . . . Piercing Weapon . | . . . . Special Melee Weapon . | . . . . Unidentified Prototypes . | . . . . Parts Lost 10 | . 5 . 5 Power 1 | . 1 . . Propulsion 4 | . 2 . 2 Utility 2 | . 1 . 1 Weapon 3 | . 1 . 2 Highest Loss Streak 4 | . 2 . 4 Average Slot Usage (%) 64 | . 68 64 53 Engine 3 | . 8 . . Leg 26 | . 27 28 22 Protection 7 | . 6 7 9 Ballistic Gun 23 | . 21 28 21 Impact Weapon 1 | . 2 . . Naked Turns . | . . . . Heaviest Build 19 | 19 19 12 12 Greatest Support 26 | 26 26 20 20 Greatest Overweight (x) 3 | 2 3 . . Average Overweight (x) . | . . . . Largest Inventory Capacity 10 | 10 10 10 10 Average Capacity 10 | 10 10 10 10 Most Carried 5 | . 3 5 5 Average Carried 2 | . 1 4 4 Final Capacity 10 | 10 10 10 10 Final Carried 5 | . 3 5 4 Class Distribution -------------------- 100% | Mutant Dominant Class ---------------- Mutant | -10/Materials Mutant | -10/Mines Mutant | -9/Materials Resources | -11 -10 -10 -9 ----------- Run | Scr Mat Min Mat Matter Collected 643 | . 389 80 174 Remotely . | . . . . Salvage Created 765 | . 389 80 296 Parts . | . . . . Haulers Intercepted . | . . . . Recyclers Shooed . | . . . . Parts Field Recycled . | . . . . Retrieved Matter . | . . . . Parts Self-Destructed . | . . . . Prevented . | . . . . Kills | -11 -10 -10 -9 ------- Run | Scr Mat Min Mat Combat Hostiles Destroyed 22 | . 12 5 5 Melee 2 | . 2 . . Guns 14 | . 4 5 5 Cannons 2 | . 2 . . Classes Destroyed 7 | . 4 . 3 Recycler 1 | . 1 . . Operator 2 | . 1 . 1 Watcher 1 | . . . 1 Swarmer 11 | . 6 5 . Grunt 7 | . 6 . 1 Brawler 1 | . . . 1 Sentry 3 | . . . 3 Best Kill Streak 3 | . 3 3 3 Combat Bots Only 3 | . 3 3 3 Max Kills in Single Turn 2 | . 1 1 2 Gunslinging . | . . . . Exploded . | . . . . Melee 1 | . 1 . . Uniques/NPCs Destroyed . | . . . . Combat | -11 -10 -10 -9 -------- Run | Scr Mat Min Mat Damage Taken 1363 | . 693 176 494 Core 275 | . 122 53 100 Absorbed by Shields . | . . . . Core Remaining (%) 65 | 100 . 30 . Volleys Fired 74 | . 39 12 23 Largest 2 | . 2 2 2 Hottest 120 | . 120 43 75 Shots Fired 142 | . 72 24 46 Gun 135 | . 65 24 46 Cannon . | . . . . Launcher . | . . . . Special 7 | . 7 . . Kinetic 132 | . 65 24 43 Thermal 10 | . 7 . 3 Explosive . | . . . . Electromagnetic . | . . . . Robot Hit Streak 18 | . 8 4 18 Robot Miss Streak 5 | . 5 3 2 Penetration Max . | . . . . Secondary Targets 4 | . 1 2 1 Max Gunslinging Chain 1 | . 1 1 1 Shots Hit Robots 96 | . 48 12 36 Core Hits 31 | . 13 5 13 Critical Hits 2 | . 1 1 . Critical Kills 1 | . 1 . . Critical Parts Destroyed 1 | . . 1 . Melee Attacks 22 | . 22 . . Impact 22 | . 22 . . Slashing . | . . . . Piercing . | . . . . Sneak Attacks 1 | . 1 . . Combat Hostiles . | . . . . Follow-up Attacks . | . . . . Damage Inflicted 1602 | . 964 182 456 Guns 998 | . 360 182 456 Cannons . | . . . . Explosions . | . . . . Melee 544 | . 544 . . Ramming 12 | . 12 . . Kinetic 973 | . 360 182 431 Thermal 73 | . 48 . 25 Explosive . | . . . . Electromagnetic . | . . . . Impact 544 | . 544 . . Slashing . | . . . . Piercing . | . . . . Highest Corruption 5 | . . . 5 Average Corruption 5 | . . . 5 Corruption Purged . | . . . . Effects 1 | . . . 1 Heat Flow Errors 1 | . . . 1 Overload Shots . | . . . . Overflow Damage 158 | . 158 . . Projectiles . | . . . . Explosions . | . . . . Melee 158 | . 158 . . Knockbacks 2 | . 2 . . Impact 2 | . 2 . . Kinetic . | . . . . Secondary . | . . . . Self-Inflicted Damage 5 | . 5 . . Shots . | . . . . Rammed 2 | . 2 . . Targets Rammed 4 | . 4 . . Kicked 2 | . 2 . . Crushed . | . . . . Highest Temperature 122 | . 80 . 122 Average Temperature 26 | . 28 . 21 Received Heat Transfer 300 | . 132 . 168 Siege Activations . | . . . . Robots Corrupted . | . . . . Combat Hostiles . | . . . . Parts Fried . | . . . . Impact Corruptions 7 | . 7 . . Robots Melted . | . . . . Combat Hostiles . | . . . . Parts Melted . | . . . . Heat Transferred 174 | . 100 . 74 Parts Sabotaged . | . . . . Parts Stolen . | . . . . Parts Stripped . | . . . . Power Chain Reactions . | . . . . Missiles Intercepted . | . . . . Alert | -11 -10 -10 -9 ------- Run | Scr Mat Min Mat Peak Influence 268 | . 268 124 147 Average Influence 73 | . 92 76 52 Maximum Alert Level 1 | . 1 . . Low Security (%) 98 | . . . . Level 1 1 | . . . . Level 2 . | . . . . Level 3 . | . . . . Level 4 . | . . . . Level 5 . | . . . . High Security . | . . . . Max Security . | . . . . Squads Dispatched 3 | . 2 . 1 Investigation 1 | . 1 . . Extermination . | . . . . Reinforcement 2 | . 1 . 1 Assault . | . . . . Garrison . | . . . . Intercept . | . . . . Construction Impeded . | . . . . Haulers Reinforced . | . . . . Stealth | -11 -10 -10 -9 --------- Run | Scr Mat Min Mat Distress Signals 2 | . 1 . 1 Communications Jammed . | . . . . Distress Signals . | . . . . Times Spotted 43 | . 26 8 9 Peak Tracking Total 4 | . 4 3 4 Tactical Retreats 8 | . 4 3 1 Traps | -11 -10 -10 -9 ------- Run | Scr Mat Min Mat Traps Triggered 3 | . 2 . 1 Indirectly . | . . . . Trap Hack Attempts . | . . . . Triggered . | . . . . Disarmed . | . . . . Reprogrammed . | . . . . Reused . | . . . . Traps Extracted . | . . . . Installed . | . . . . Triggered . | . . . . Machines | -11 -10 -10 -9 ---------- Run | Scr Mat Min Mat Machines Disabled 1 | . 1 . . Max in Single Turn 1 | . 1 . . Machines Sabotaged . | . . . . Garrisons Compromised . | . . . . Overloaded Fab Kills . | . . . . Fab Network Shutdowns . | . . . . Hacking | -11 -10 -10 -9 --------- Run | Scr Mat Min Mat Machines Accessed 5 | . 2 1 2 Terminals 5 | . 2 1 2 Fabricators . | . . . . Repair Stations . | . . . . Recycling Units . | . . . . Scanalyzers . | . . . . Garrison Access . | . . . . Total Hacks 15 | . 6 4 5 Successful 8 | . 4 2 2 Failed 7 | . 2 2 3 Catastrophic 2 | . . 1 1 Database Lockouts . | . . . . Manual 4 | . 1 3 . Terminals 15 | . 6 4 5 Fabricators . | . . . . Repair Stations . | . . . . Recycling Units . | . . . . Scanalyzers . | . . . . Garrison Access . | . . . . Terminal Hacks 8 | . 4 2 2 Record 2 | . . 2 . Prototype ID Bank 2 | . 1 . 1 Branch Access Points 1 | . 1 . . Alert Level 2 | . 1 . 1 Hauler Manifests 1 | . 1 . . Fabricator Hacks . | . . . . Repair Station Hacks . | . . . . Recycling Unit Hacks . | . . . . Scanalyzer . | . . . . Garrison Access Hacks . | . . . . Unauthorized Hacks . | . . . . Terminals . | . . . . Fabricators . | . . . . Repair Stations . | . . . . Recycling Units . | . . . . Scanalyzers . | . . . . Garrison Access . | . . . . Data Cores Recovered 2 | . 1 . 1 Used 1 | . . . 1 Hacking Detections 5 | . 2 1 2 Full Trace Events 3 | . 2 1 . Feedback Events . | . . . . Feedback Blocked . | . . . . Robot Schematics Acquired . | . . . . Robots Built . | . . . . Matter . | . . . . Time . | . . . . Total Robot Build Rating . | . . . . Part Schematics Acquired . | . . . . Parts Built . | . . . . Matter . | . . . . Time . | . . . . Total Part Build Rating . | . . . . Parts Repaired . | . . . . Time . | . . . . Parts Recycled . | . . . . Recycled Matter . | . . . . Retrieved Matter . | . . . . Retrieved Components . | . . . . Parts Scanalyzed . | . . . . Part Schematics Acquired . | . . . . Parts Damaged . | . . . . Bothacking | -11 -10 -10 -9 ------------ Run | Scr Mat Min Mat Used RIF Installer . | . . . . Robots Hacked . | . . . . Non-combat . | . . . . Combat . | . . . . Robot Hacks Applied . | . . . . Relay Couplers Released . | . . . . Robots Rewired . | . . . . Allies Hacked . | . . . . Hacks Repelled . | . . . . Allies | -11 -10 -10 -9 -------- Run | Scr Mat Min Mat Total Allies 1 | . . 1 . Largest Group 1 | . . 1 . Highest-Rated Group 31 | . . 31 . Highest-Rated Ally 31 | . . 31 . Total Orders . | . . . . Ally Attacks . | . . . . Total Damage . | . . . . Kills . | . . . . Allies Corrupted . | . . . . Allies Melted . | . . . . Intel | -11 -10 -10 -9 ------- Run | Scr Mat Min Mat Robot Analysis Total . | . . . . Derelict Logs Recovered . | . . . . Drone Launches . | . . . . Drone Recoveries . | . . . . Exploration | -11 -10 -10 -9 ------------- Run | Scr Mat Min Mat Turns Passed 2561 | 203 1059 943 356 Spaces Moved 1815 | 236 645 742 192 Core 197 | 183 14 . . Treads . | . . . . Legs 1618 | 53 631 742 192 Wheels . | . . . . Hover . | . . . . Flight . | . . . . Fastest Speed 50 | 50 120 120 120 Average Speed 113 | 66 121 120 120 Slowest Speed 200 | 150 200 120 120 Overloaded Moves . | . . . . Propulsion Burnouts . | . . . . Robots Hopped . | . . . . Cave-ins Triggered . | . . . . Exploration Rate (%) 51 | 6 78 99 23 Regions Visited 3 Branch Regions 1 Pre-discovered Areas . | . . . . Known Exits Taken 1 | . 1 . . Unknown Exits Taken 2 | 1 . 1 . Scrap Searched . | . . . . Spaces Dug 1 | . 1 . . Terrain Destroyed 3 | . 3 . . Melee . | . . . . Projectile 3 | . 3 . . AOE . | . . . . Actions | -11 -10 -10 -9 --------- Run | Scr Mat Min Mat Total 2107 | 281 784 770 272 Wait 183 | 46 67 15 55 Move 1812 | 235 644 741 192 Hop . | . . . . Pick Up 2 | . . 2 . Fast Attach 5 | . 4 . 1 Attach 2 | . 1 . 1 Detach . | . . . . Swap 3 | . 3 . . Drop . | . . . . Fire 74 | . 39 12 23 Melee 22 | . 22 . . Ram . | . . . . Kick 4 | . 4 . . Crush . | . . . . Escape Stasis . | . . . . Rewire . | . . . . Trap . | . . . . Miscellaneous . | . . . . Route ------- -11/Scrapyard -10/Materials (discovered 3 exits: *Mat x2 / *Min) -10/Mines (discovered 2 exits: *Mat x2) -9/Materials History --------- Turn | Location | Event 5 | -11/Scrapyard | Discovered new exit (range 12) 204 | -11/Scrapyard | Entered Materials 300 | -10/Materials | Build established: Mutant 894 | -10/Materials | Discovered new exit (range 10) 950 | -10/Materials | Identified exit to Mines 1086 | -10/Materials | Discovered new exit (range 6) 1263 | -10/Materials | Entered Mines 1266 | -10/Mines | Received a Mining Laser from a helpful Derelict 1665 | -10/Mines | Core integrity fell below 50% 1693 | -10/Mines | Discovered new exit (range 8) 1717 | -10/Mines | Received a Rocket Launcher from a helpful Derelict 1741 | -10/Mines | Discovered new exit (range 4) 2206 | -10/Mines | Entered Materials 2206 | -9/Materials | Evolved 2 slots: Propulsion x1, Utility x1 2562 | -9/Materials | Self-destructed Last Messages --------------- 02529_ B-36 Bruiser unfolds itself. 02529_ G-34 Mercenary unfolds itself. 02530_ Acquired 45 matter. 02532_ Acquired 6 matter. 02536_ Imp. Assault Rifle destroyed. 02536_ System corrupted by crushing effect (+5). 02538_ Acquired 10 matter. 02538_ B-36 Bruiser destroyed. 02538_ Switching to secondary target: G-34 Mercenary. 02539_ Acquired 3 matter. 02539_ K-01 Serf collects debris. 02542_ Acquired 3 matter. 02544_ K-01 Serf collects debris. 02544_ G-34 Mercenary destroyed. 02545_ Acquired 3 matter. 02547_ K-01 Serf collects debris. 02549_ System corrupted: Heat flow error (+150). 02550_ K-01 Serf collects debris. 02555_ Connecting with Terminal... 02558_ K-01 Serf collects debris. Map ----- +----------------------------------------------------+ | ??????###########+####?????# #?# | | ??????# + #???????# #?# | | ??????# """"" # #???????######### | | ??????# """"" # #???????????????# | | ??????# """"" + #???????????????# | | ??????# """"" # #???????????????# | | ??????# """"" # #???????????????# | | ??????# """"" # #???????????????## | | ??????# """"" # ????????????????# | | ??????# # ???????????????# | | ??????#+######## ???????????????# | | ??????# #??????####+##??????????????# | | ??????# #???????????????????????????# | | ??????# #??????????????????#????????# | | ??????# #????????????????? #????????? | | ??????# #???????????????? #?????????? | | ??????# #######?????????? #?????????? | | ??????# ## #?????????? #?????????? | | ??????# ##" #?????????? #?????????? | | ?????## ##" #?????????? #?????????? | | ?????# #" #????????? #?????????? | | ?????# #T ##???????? #?????????? | | ?????# #" #???????? #?????????? | | ?????# #" k ##???????? #?????????? | | ?????# #" % #????????? #?????????? | | ?????# # %@#???????## ##????????? | | ?????# ###r########## #????????? | | ?????# %% % #????????? | | ?????# T +????????? | | ?????# #????????? | | ?????# ############## #????????? | | ?????# #????????????## ##????????? | | ?????# #?????????????? #?????????? | | ?????# #?????????????? #?????????? | | ?????# #?????????????? #?????????? | | ?????# +?????????????? #?????????? | | ?????# ??????????????? #?????????? | | ?????# ??????????????? #?????????? | | ?????# ??????????????? ?????????? | | ?????# ???????????????? ?????????? | | ?????# ???????????????? ????????? | | ?????# ???????????????? ????????? | | ?????? ???????????????? ?????????? | | ?????????????????????????????????????? | | ?????????????????????????????????????? | | ?????????????????????????????????????? | | ?????????????????????????????????????? | | ?????????????????????????????????????? | | ?????????????????????????????????????? | | ?????????????????????????????????????? | +----------------------------------------------------+ Best States ------------- Heat Dissipation 28 Energy Generation 12 Energy Capacity 265 Matter Stores 300 Matter Capacity 300 Sight Range 16 Terrain Scan Density 10 Armor Coverage 225 Evasion (%) 50 Item Schematics ----------------- None Robot Schematics ------------------ None Fabricated ------------ Nothing Alien Tech Used ----------------- None Achievements -------------- None Challenges ------------ None Cogshop Purchases (15) ------------------------ Imp. Ion Engine (634) Imp. Aluminum Leg (632) Imp. Aluminum Leg (632) Imp. Assault Rifle (739) Assault Rifle (633) Med. Armor Plating (671) Mining Laser (629) Great Maul (Loot Box) Aluminum Leg (776) Aluminum Leg (776) Med. Laser (524) Sml. Laser (262) Med. Armor Plating (376) Battle Rifle (707) Carbon-fiber Leg (1023) Game ------ Seed MissileAlertInsulator Manual? 0 Play Time 01:06:37 Cumulative 46.8 hours Start 2019.11.10 @ 14:20:49 End 2019.11.10 @ 22:34:39 Sessions 8 Manual Loads 0 Difficulty Rogue Special Mode AFD2019/Pay2Buy Game No. 42 Rogue 42 Adventurer 0 Explorer 2 Win Type - Total 0 Types 0/0/0/0/0/0/0 Lore% 30 Gallery% 35 Achievement% 30 Wizard Run 0 Options --------- ASCII 0 Keyboard 1 Movement Vi Keybinds 0 Fullscreen 1 Font 18/CogNarrow Map View 76x50 Tactical HUD 1 Map Filters NONE Filters NONE Steam 1 RUN: 7ef1a665-f60f-4fde-9b6b-ed13bdceaff2